bitfinex-derivatives/quotes_BTCF0:USTF0_20250822
["timestamp","ask_amount","ask_price","bid_price","bid_amount"]
[1755874697109,1.39693501,115810.0,115800.0,0.0002]
[1755874697613,1.39893501,115810.0,115800.0,0.0002]
[1755874697809,1.75973501,115810.0,115800.0,0.0002]
[1755874698212,2.70269501,115810.0,115800.0,0.0002]
[1755874698410,0.98285508,115810.0,115800.0,0.0002]
[1755874698713,1.42538031,115810.0,115800.0,0.49759]
[1755874699012,1.50814501,115810.0,115800.0,0.14338]
[1755874699209,1.50814501,115810.0,115800.0,0.0002]
[1755874699414,1.42179031,115810.0,115800.0,0.40932]
[1755874699609,0.27968038,115810.0,115800.0,1.8875922]
[1755874699816,0.80856031,115810.0,115800.0,1.80123]
[1755874700115,0.97497031,115810.0,115800.0,1.80123]
[1755874700816,0.02290038,115810.0,115800.0,2.05123]
[1755874701509,0.91976501,115810.0,115800.0,0.49759]
[1755874701812,1.15058501,115810.0,115800.0,0.0002]
[1755874702208,1.51138501,115810.0,115800.0,0.00121261]
[1755874702408,0.98250508,115810.0,115800.0,0.00121261]
[1755874702613,1.51138501,115810.0,115800.0,0.00121261]
[1755874702808,1.51138501,115810.0,115800.0,0.00131935]
[1755874703016,1.76138501,115810.0,115800.0,0.00131935]
[1755874703215,1.76138501,115810.0,115800.0,0.00142609]
[1755874703720,0.78535038,115810.0,115800.0,0.00142609]
[1755874703921,1.06423031,115810.0,115800.0,0.49881609]
[1755874704120,1.15058501,115810.0,115800.0,0.49881609]
[1755874704320,0.53535038,115810.0,115800.0,0.49881609]
[1755874704519,1.06423031,115810.0,115800.0,0.49881609]
[1755874704723,1.06423031,115810.0,115800.0,0.85961609]
[1755874704919,1.06423031,115810.0,115800.0,0.49881609]
[1755874705121,1.15058501,115810.0,115800.0,0.49881609]
[1755874705319,1.15058501,115810.0,115800.0,0.00153283]
[1755874705623,1.15058501,115810.0,115800.0,0.26747283]
[1755874705921,1.15058501,115810.0,115800.0,0.26757957]
[1755874706121,1.15058501,115810.0,115800.0,0.00174631]
[1755874706534,0.53535038,115810.0,115800.0,0.49924305]
[1755874706716,1.15058501,115810.0,115800.0,0.00185305]
[1755874706921,1.15058501,115810.0,115800.0,0.94437305]
[1755874707225,1.15058501,115810.0,115800.0,0.00185305]
[1755874707524,1.15058501,115810.0,115800.0,0.94437305]
[1755874707733,0.36894038,115810.0,115800.0,0.77177305]
[1755874708022,0.02290038,115810.0,115800.0,2.13968525]
[1755874708422,0.1448,115850.0,115830.0,0.10644]
[1755874708725,0.01936294,115860.0,115850.0,0.49739]
[1755874708925,0.01936294,115860.0,115850.0,1.17591163]
[1755874709322,0.01936294,115860.0,115850.0,1.17794447]
[1755874709527,0.01936294,115860.0,115850.0,1.69840357]
[1755874709731,0.01936294,115860.0,115850.0,0.83319884]
[1755874709925,0.01936294,115860.0,115850.0,1.44840357]
[1755874710120,0.01936294,115860.0,115850.0,1.69840357]
[1755874710423,0.83631832,115890.0,115860.0,0.39175]
[1755874710619,0.39723,115880.0,115870.0,1.69515]
[1755874710927,0.8168454,115880.0,115870.0,1.30336]
[1755874711117,0.8168454,115880.0,115870.0,1.19256]
[1755874711319,0.8168454,115880.0,115870.0,0.2502]
[1755874711621,1.5139479,115880.0,115870.0,0.00228809]
[1755874712425,1.0668454,115880.0,115870.0,0.00228809]
[1755874712730,1.4336454,115880.0,115870.0,0.00328809]
[1755874712924,1.0728454,115880.0,115870.0,0.00328809]
[1755874713816,1.0788454,115880.0,115870.0,0.00328809]
[1755874714222,1.1651479,115880.0,115870.0,0.00328809]
[1755874714620,1.5259479,115880.0,115870.0,0.00328809]
[1755874714922,0.4835474,115860.0,115850.0,0.077616]
[1755874715118,0.9031628,115860.0,115840.0,0.3608]
[1755874715318,0.39723,115850.0,115840.0,0.75255]
[1755874715722,0.51245,115850.0,115840.0,0.50398]
[1755874715926,0.51145,115840.0,115830.0,0.61625833]
[1755874716126,0.51045,115840.0,115830.0,0.66428]
[1755874716320,0.9300654,115840.0,115830.0,0.66428]
[1755874716525,0.9300654,115840.0,115830.0,0.5211]
[1755874716725,0.51045,115840.0,115830.0,0.5211]
[1755874716922,0.34604,115840.0,115830.0,1.10819]
[1755874717125,0.26002,115840.0,115830.0,1.1178552]
[1755874717333,0.005,115850.0,115840.0,0.39175]
[1755874717516,0.20124,115850.0,115840.0,0.85937222]
[1755874717922,0.11522,115850.0,115840.0,1.10937222]
[1755874718129,0.11522,115850.0,115840.0,2.05169222]
[1755874718328,0.22058015,115860.0,115850.0,0.39175]
[1755874718526,0.38699015,115860.0,115850.0,0.85839]
[1755874718736,0.38699015,115860.0,115850.0,0.85957222]
[1755874719038,0.01934015,115860.0,115850.0,1.10957222]
[1755874720327,0.01934015,115860.0,115850.0,1.19589702]
[1755874720526,0.01934015,115860.0,115850.0,1.19669702]
[1755874720725,0.1448,115880.0,115870.0,0.10564]
[1755874720925,0.53192292,115890.0,115880.0,0.49739]
[1755874721138,0.53192292,115890.0,115880.0,0.85839]
[1755874721640,0.53192292,115890.0,115880.0,0.9296448]
[1755874722434,0.27949292,115890.0,115880.0,0.9296448]
[1755874722636,0.01947292,115890.0,115880.0,0.9296448]
[1755874722930,0.01947292,115890.0,115880.0,1.1796448]
[1755874724142,0.30814292,115890.0,115880.0,1.1806448]
[1755874724433,0.95857832,115890.0,115880.0,1.1806448]
[1755874724827,1.03287332,115890.0,115880.0,0.8188448]
[1755874725038,1.64367332,115890.0,115880.0,0.0714548]
[1755874725337,0.4770125,115880.0,115870.0,0.001]
[1755874725536,0.4762125,115880.0,115870.0,0.001]
[1755874725927,0.8105254,115880.0,115870.0,0.31491]
[1755874726338,0.64091,115880.0,115870.0,0.40318]
[1755874726537,0.39091,115880.0,115870.0,0.76398]
[1755874726833,0.23082,115880.0,115870.0,0.76398]
[1755874727033,0.41938292,115890.0,115880.0,0.40218]
[1755874727239,0.02847292,115890.0,115880.0,1.34402]
[1755874727429,0.02847292,115890.0,115880.0,1.7911225]
[1755874727734,0.01947292,115890.0,115880.0,1.70582]
[1755874727937,0.03047292,115890.0,115880.0,2.0421225]
[1755874728135,0.011,115890.0,115880.0,2.0421225]
[1755874728335,0.16009,115900.0,115890.0,0.39488]
[1755874728528,0.16009,115900.0,115890.0,0.82395825]
[1755874728840,0.24988,115900.0,115890.0,0.82395825]
[1755874729228,0.5603454,115910.0,115890.0,1.07395825]
[1755874729428,0.24988,115920.0,115910.0,0.39488]
[1755874729736,0.24988,115920.0,115910.0,0.75588]
[1755874730036,1.04954248,115940.0,115920.0,0.39488]
[1755874730334,0.40985708,115940.0,115930.0,0.75568]
[1755874730536,0.01924708,115940.0,115930.0,0.8421452]
[1755874730735,0.01924708,115940.0,115930.0,1.0921452]
[1755874730935,0.17933708,115940.0,115930.0,1.00588]
[1755874731536,0.0002,115940.0,115930.0,1.00588]
[1755874731838,0.0002,115940.0,115930.0,1.00688]
[1755874731839,0.17229,115940.0,115930.0,1.00688]
[1755874732234,0.17229,115940.0,115930.0,0.65594961]
[1755874732439,1.5202832,115940.0,115930.0,0.0012]
[1755874732837,0.4768827,115920.0,115900.0,1.11241]
[1755874733037,0.8102254,115910.0,115900.0,1.26055043]
[1755874733341,0.39061,115910.0,115900.0,0.31887043]
[1755874733530,0.39061,115910.0,115900.0,1.26051043]
[1755874733838,0.16009,115900.0,115890.0,1.76539825]
[1755874734036,0.16009,115900.0,115890.0,1.77501999]
[1755874734232,0.6501354,115910.0,115900.0,0.39488]
[1755874734543,1.5488065,115920.0,115910.0,0.39488]
[1755874734544,1.0392954,115920.0,115910.0,0.39488]
[1755874734838,0.009,115920.0,115910.0,0.39488]
[1755874735138,1.1710254,115930.0,115920.0,0.30911]
[1755874735345,0.3608,115930.0,115920.0,0.30911]
[1755874735637,1.1710254,115940.0,115930.0,0.39488]
[1755874735936,1.2572832,115940.0,115920.0,0.3608]
[1755874736138,1.2572906,115930.0,115920.0,0.0002]
[1755874736448,1.2580906,115930.0,115920.0,0.0002]
[1755874736735,1.2572906,115930.0,115920.0,0.0002]
[1755874737146,0.0862727,115920.0,115910.0,0.001]
[1755874737346,1.2572981,115920.0,115910.0,0.001]
[1755874737542,1.5072981,115920.0,115910.0,0.001]
[1755874737732,0.0862876,115900.0,115890.0,1.27559999]
[1755874737931,0.5797054,115900.0,115890.0,1.41397999]
[1755874738230,0.6776057,115910.0,115900.0,0.2565]
[1755874738231,0.24988,115910.0,115900.0,0.2565]
[1755874738432,0.4768976,115900.0,115880.0,0.3618]
[1755874738639,1.2573204,115890.0,115880.0,0.0106837]
[1755874738941,1.2573204,115890.0,115880.0,0.001]
[1755874739138,0.8965204,115890.0,115880.0,0.31011]
[1755874739440,0.6660004,115890.0,115880.0,0.39588]
[1755874739944,1.2573204,115890.0,115880.0,0.20770584]
[1755874740740,1.2573204,115890.0,115880.0,0.37843584]
[1755874740942,1.2573204,115890.0,115880.0,0.37763584]
[1755874741236,1.2783204,115890.0,115880.0,0.31131]
[1755874741431,0.858705,115890.0,115880.0,0.31131]
[1755874741626,1.2783204,115890.0,115880.0,0.31131]
[1755874742940,1.2883204,115890.0,115880.0,0.31131]
[1755874743243,1.2883204,115890.0,115880.0,0.0022]
[1755874743643,1.2883204,115890.0,115880.0,0.31131]
[1755874743940,0.5369104,115890.0,115880.0,0.64708]
[1755874744139,0.031,115890.0,115880.0,1.00868]
[1755874744535,0.031,115890.0,115880.0,1.07754431]
[1755874744737,1.27646137,115920.0,115890.0,0.39488]
[1755874745038,0.49604597,115920.0,115910.0,0.39488]
[1755874745254,0.85684597,115920.0,115910.0,0.13858]
[1755874745633,0.85684597,115920.0,115910.0,0.55931]
[1755874745840,0.85684597,115920.0,115910.0,0.64508]
[1755874746037,1.27646137,115920.0,115910.0,0.2502]
[1755874746343,1.57275836,115920.0,115910.0,0.0022]
[1755874746740,0.086295,115890.0,115880.0,0.20724431]
[1755874747036,1.2573204,115890.0,115880.0,0.20724431]
[1755874747239,1.2573204,115890.0,115880.0,0.06886431]
[1755874747444,0.2463925,115880.0,115870.0,1.34563916]
[1755874747643,0.2463925,115880.0,115870.0,1.25986916]
[1755874747644,1.2573279,115880.0,115870.0,1.25986916]
[1755874747843,1.2573279,115880.0,115870.0,0.14797916]
[1755874748141,1.2573279,115880.0,115870.0,1.08913916]
[1755874748332,1.2573279,115880.0,115870.0,0.14797916]
[1755874748741,1.2573279,115880.0,115870.0,0.40447916]
[1755874748937,0.6694954,115880.0,115870.0,0.40447916]
[1755874749130,0.4296154,115880.0,115870.0,0.40447916]
[1755874749334,0.4296154,115880.0,115870.0,0.76527916]
[1755874749543,0.01,115880.0,115870.0,1.01527916]
[1755874749744,0.4296154,115880.0,115870.0,1.01527916]
[1755874749933,0.01,115880.0,115870.0,1.17250189]
[1755874750139,0.01,115880.0,115870.0,1.08619199]
[1755874750333,0.01,115880.0,115870.0,1.17250189]
[1755874750942,0.017,115880.0,115870.0,1.17350189]
[1755874751246,0.017,115880.0,115870.0,1.08639199]
[1755874751739,0.17709,115880.0,115870.0,2.02739199]
[1755874752048,0.017,115880.0,115870.0,2.02739199]
[1755874752343,0.4366154,115880.0,115870.0,2.02739199]
[1755874752736,0.6830079,115880.0,115870.0,1.08639199]
[1755874752936,0.6830079,115880.0,115870.0,0.14917916]
[1755874752937,0.9135279,115880.0,115870.0,0.14917916]
[1755874753136,1.2743279,115880.0,115870.0,1.09013916]
[1755874753442,1.2743279,115880.0,115870.0,0.95175916]
[1755874753845,1.2743279,115880.0,115870.0,0.01079916]
[1755874754241,1.2743279,115880.0,115870.0,0.95171916]
[1755874754739,1.2743279,115880.0,115870.0,0.01079916]
[1755874754940,1.2743279,115880.0,115870.0,1.95395916]
[1755874754941,0.4366154,115880.0,115870.0,1.95395916]
[1755874755136,0.017,115880.0,115870.0,1.95395916]
[1755874755640,0.017,115880.0,115870.0,2.04026906]
[1755874755942,0.017,115880.0,115870.0,1.95395916]
[1755874756447,0.4366154,115880.0,115870.0,1.95395916]
[1755874758145,0.5229178,115880.0,115870.0,0.75997916]
[1755874758346,0.9143578,115880.0,115870.0,1.26047916]
[1755874758641,0.7809278,115880.0,115870.0,0.40479916]
[1755874758843,0.9143578,115880.0,115870.0,1.09314916]
[1755874759047,1.2751578,115880.0,115870.0,0.01198109]
[1755874759246,0.9143578,115880.0,115870.0,0.95266109]
[1755874759544,0.6866154,115880.0,115870.0,1.70746109]
[1755874759746,1.0309278,115880.0,115870.0,1.34666109]
[1755874760043,1.1643578,115880.0,115870.0,1.34666109]
[1755874760258,1.1643578,115880.0,115870.0,1.17933109]
[1755874760554,1.1643578,115880.0,115870.0,1.09429109]
[1755874760736,1.1643578,115880.0,115870.0,1.09425109]
[1755874761546,1.1643578,115880.0,115870.0,1.34662109]
[1755874761844,1.0780554,115880.0,115870.0,1.45903109]
[1755874762239,1.0780554,115880.0,115870.0,0.51839109]
[1755874762833,0.8610854,115880.0,115870.0,1.45891109]
[1755874763039,0.9683154,115880.0,115870.0,1.45891109]
[1755874763233,1.0518554,115880.0,115870.0,1.45891109]
[1755874763448,1.1852854,115880.0,115870.0,1.45891109]
[1755874763742,0.8519724,115880.0,115870.0,1.45891109]
[1755874763940,1.2715878,115880.0,115870.0,1.45883109]
[1755874764348,1.38017124,115880.0,115870.0,1.45883109]
[1755874764644,0.79519884,115880.0,115870.0,1.81963109]
[1755874764843,0.017,115880.0,115870.0,2.15674099]
[1755874765247,0.017,115880.0,115870.0,2.2327889]
[1755874765550,0.017,115880.0,115870.0,2.23309627]
[1755874765737,0.017,115880.0,115870.0,1.29265627]
[1755874766144,0.017,115880.0,115870.0,2.15696836]
[1755874766448,0.01951062,115900.0,115880.0,0.0863011]
[1755874766639,0.01951062,115900.0,115890.0,0.86900667]
[1755874766839,0.01951062,115900.0,115890.0,1.80928667]
[1755874767040,0.01951062,115900.0,115890.0,3.03458051]
[1755874767245,0.01951062,115900.0,115890.0,2.50638167]
[1755874767642,0.01951062,115900.0,115890.0,2.50668904]
[1755874768149,0.02451062,115900.0,115890.0,2.50682886]
[1755874768644,0.02551062,115900.0,115890.0,1.31766886]
[1755874768837,0.02551062,115900.0,115890.0,2.25778886]
[1755874769046,0.02651062,115900.0,115890.0,2.25778886]
[1755874769344,0.02651062,115900.0,115890.0,2.50778886]
[1755874769546,0.01915927,115920.0,115900.0,0.0862828]
[1755874769746,0.01915927,115920.0,115910.0,1.66562]
[1755874769941,0.01915927,115920.0,115910.0,2.2543301]
[1755874770143,0.01915927,115920.0,115910.0,2.50669396]
[1755874771149,0.02415927,115920.0,115910.0,2.50669396]
[1755874771345,0.02415927,115920.0,115910.0,2.42033386]
[1755874771544,0.19862927,115920.0,115910.0,2.42033386]
[1755874771746,0.19362927,115920.0,115910.0,2.42033386]
[1755874772148,0.19362927,115920.0,115910.0,2.05793386]
[1755874772354,0.19362927,115920.0,115910.0,1.11797386]
[1755874772543,0.82905811,115920.0,115910.0,2.05785386]
[1755874772848,0.02515927,115920.0,115910.0,2.50593396]
[1755874773041,0.02515927,115920.0,115910.0,2.50585396]
[1755874773447,0.02515927,115920.0,115910.0,1.47977386]
[1755874773637,0.83505811,115920.0,115910.0,2.16701]
[1755874773847,1.36914154,115920.0,115910.0,0.86679628]
[1755874774151,1.36914154,115920.0,115910.0,0.75836628]
[1755874774340,1.28286884,115920.0,115910.0,1.8105787]
[1755874774546,0.4495027,115920.0,115910.0,1.8104987]
[1755874774749,0.97770154,115920.0,115910.0,1.8104987]
[1755874775053,1.15217154,115920.0,115910.0,1.8104987]
[1755874775261,1.06589884,115920.0,115910.0,1.8104987]
[1755874775455,1.06589884,115920.0,115910.0,1.8104587]
[1755874775849,0.89142884,115920.0,115910.0,1.81066112]
[1755874776147,1.28286884,115920.0,115910.0,1.81066112]
[1755874776453,1.36914154,115920.0,115910.0,1.81066112]
[1755874776650,1.36914154,115920.0,115910.0,1.72546112]
[1755874776848,1.36914154,115920.0,115910.0,1.55813112]
[1755874777042,1.28286884,115920.0,115910.0,1.81079564]
[1755874777249,0.006,115920.0,115910.0,1.81079564]
[1755874777955,0.006,115920.0,115910.0,1.81107553]
[1755874778955,0.006,115920.0,115910.0,2.14735563]
[1755874779149,0.0062,115920.0,115910.0,2.14755563]
[1755874779546,0.0062,115920.0,115910.0,2.06127553]
[1755874780151,0.53439884,115920.0,115910.0,2.06127553]
[1755874780642,0.0062,115920.0,115910.0,2.06127553]
[1755874781858,0.0062,115920.0,115910.0,2.14755563]
[1755874782252,0.0062,115920.0,115910.0,2.50835563]
[1755874783358,0.0062,115920.0,115910.0,2.42207553]
[1755874783758,0.0062,115920.0,115910.0,2.42228895]
[1755874784154,0.64988884,115920.0,115910.0,1.48296895]
[1755874784455,1.36161164,115920.0,115910.0,1.72564895]
[1755874784653,1.36161164,115920.0,115910.0,1.72586237]
[1755874784849,1.36161164,115920.0,115910.0,0.36597237]
[1755874785050,1.36161164,115920.0,115910.0,1.30441237]
[1755874785251,0.98342884,115920.0,115910.0,1.69930237]
[1755874785460,0.89988884,115920.0,115910.0,1.69930237]
[1755874785658,0.64988884,115920.0,115910.0,1.69951579]
[1755874786053,0.0062,115920.0,115910.0,1.69951579]
[1755874786254,0.0062,115920.0,115910.0,2.03579599]
[1755874786452,0.0062,115920.0,115910.0,1.94951579]
[1755874786952,0.36371,115920.0,115910.0,1.94956921]
[1755874787153,1.02533884,115920.0,115910.0,1.94956921]
[1755874787658,1.11161174,115920.0,115910.0,1.01128921]
[1755874787869,1.72321174,115920.0,115910.0,0.00581263]
[1755874788162,0.5835326,115880.0,115870.0,1.25708916]
[1755874788363,1.02542884,115880.0,115870.0,1.24749]
[1755874788766,0.25,115880.0,115870.0,1.69096]
[1755874788952,0.54718829,115890.0,115880.0,0.11136]
[1755874789256,0.0863025,115880.0,115870.0,0.53897244]
[1755874789460,1.11173134,115880.0,115870.0,1.08914244]
[1755874789660,1.02542884,115880.0,115870.0,1.34003244]
[1755874789861,0.80216884,115880.0,115870.0,1.70083244]
[1755874790284,0.80216884,115880.0,115870.0,1.78714244]
[1755874790285,0.25,115880.0,115870.0,1.78714244]
[1755874790566,0.52819884,115890.0,115880.0,0.5034]
[1755874790758,0.80216884,115890.0,115880.0,0.5034]
[1755874791062,1.11172404,115890.0,115880.0,1.07903]
[1755874791268,1.72252404,115890.0,115880.0,0.0002]
[1755874791457,1.72252404,115890.0,115880.0,0.93804]
[1755874791659,1.72252404,115890.0,115880.0,0.938]
[1755874791859,1.72652404,115890.0,115880.0,0.938]
[1755874792167,1.72652404,115890.0,115880.0,0.0002]
[1755874792365,1.72652404,115890.0,115880.0,0.938]
[1755874793068,0.5835404,115870.0,115860.0,1.01390998]
[1755874793264,1.72333924,115870.0,115860.0,0.07626998]
[1755874793659,1.72253924,115870.0,115860.0,0.07626998]
[1755874793862,1.79043589,115870.0,115860.0,0.07626998]
[1755874794057,1.26223705,115870.0,115860.0,0.07626998]
[1755874794259,1.42963589,115870.0,115860.0,0.07626998]
[1755874794662,1.79043589,115870.0,115860.0,0.07626998]
[1755874794858,1.27542884,115870.0,115860.0,0.57966998]
[1755874795063,1.63822884,115870.0,115860.0,0.57966998]
[1755874795470,1.1963404,115870.0,115860.0,0.57966998]
[1755874795771,1.63822884,115870.0,115860.0,0.57966998]
[1755874795962,1.27742884,115870.0,115860.0,0.57966998]
[1755874796162,1.27742884,115870.0,115860.0,0.57986998]
[1755874796462,0.74923,115870.0,115860.0,0.57986998]
[1755874796667,1.27742884,115870.0,115860.0,0.57986998]
[1755874796869,1.36373924,115870.0,115860.0,1.01394998]
[1755874797473,1.72453924,115870.0,115860.0,1.01382998]
[1755874798473,1.72453924,115870.0,115860.0,0.07646998]
[1755874798675,1.79291241,115870.0,115860.0,0.07646998]
[1755874798869,1.79291241,115870.0,115860.0,0.0002]
[1755874799675,2.73003241,115870.0,115860.0,0.0002]
[1755874799875,1.79291241,115870.0,115860.0,0.0002]
[1755874800374,1.01471357,115870.0,115860.0,0.11156]
[1755874800566,0.11749,115870.0,115860.0,0.7544]
[1755874800771,0.002,115870.0,115860.0,1.72971674]
[1755874801067,0.002,115870.0,115860.0,1.2015179]
[1755874801273,0.002,115870.0,115860.0,1.72971674]
[1755874801570,0.4174,115900.0,115890.0,0.5034]
[1755874801766,0.828825,115910.0,115890.0,0.5036]
[1755874801964,0.3608,115910.0,115900.0,1.44024]
[1755874802165,0.75145884,115930.0,115910.0,0.11136]
[1755874802373,0.11549,115930.0,115920.0,1.80176]
[1755874802573,0.74254,115950.0,115940.0,0.39204]
[1755874802579,0.52819884,115950.0,115940.0,0.39204]
[1755874802778,0.361,115960.0,115950.0,0.39204]
[1755874802779,0.74274,115960.0,115950.0,0.39204]
[1755874802973,0.0002,115960.0,115950.0,0.75304]
[1755874803272,0.0002,115960.0,115950.0,0.99851494]
[1755874803872,0.0002,115960.0,115950.0,1.08476654]
[1755874804074,0.0002,115960.0,115950.0,1.09485307]
[1755874804382,0.0012,115960.0,115950.0,1.11185307]
[1755874804677,0.0012,115960.0,115950.0,1.5525681]
[1755874804879,0.51928,115990.0,115980.0,0.16822]
[1755874805069,0.15848,115990.0,115980.0,1.18729]
[1755874805372,0.80065503,115990.0,115980.0,0.14115]
[1755874805570,0.38174,115990.0,115980.0,0.39204]
[1755874805767,0.14343,115990.0,115980.0,0.46264543]
[1755874805970,0.36084,116000.0,115990.0,0.39204]
[1755874806166,0.15852,116000.0,115990.0,0.39204]
[1755874806467,4e-05,116000.0,115990.0,0.39204]
[1755874806672,4e-05,116000.0,115990.0,1.32804]
[1755874807582,4e-05,116000.0,115990.0,0.39204]
[1755874807971,4e-05,116000.0,115990.0,1.0890614]
[1755874808181,0.00024,116000.0,115990.0,1.00304]
[1755874808479,0.00024,116000.0,115990.0,0.14135]
[1755874808480,0.38198,116000.0,115990.0,0.14135]
[1755874808780,0.0862288,115980.0,115970.0,0.14115]
[1755874808980,0.30191,115970.0,115960.0,0.30937]
[1755874809185,0.41891503,115970.0,115960.0,0.29198134]
[1755874809482,0.4679837,115960.0,115950.0,0.14115]
[1755874809673,1.24769873,115960.0,115950.0,0.14115]
[1755874810180,0.80065503,115960.0,115950.0,0.30937]
[1755874810484,0.58406,115980.0,115970.0,0.39204]
[1755874810673,0.64421503,116000.0,115980.0,0.39204]
[1755874810978,1.16349503,116000.0,115990.0,0.30937]
[1755874811182,4e-05,116000.0,115990.0,0.75284]
[1755874811372,4e-05,116000.0,115990.0,1.3272]
[1755874811679,4e-05,116000.0,115990.0,0.39204]
[1755874812073,4e-05,116000.0,115990.0,1.00284]
[1755874812479,4e-05,116000.0,115990.0,1.0898614]
[1755874812684,4e-05,116000.0,115990.0,1.0900614]
[1755874812982,0.0002,116010.0,116000.0,0.478254]
[1755874813168,0.0002,116010.0,116000.0,1.68792]
[1755874813375,0.0002,116010.0,116000.0,2.44384903]
[1755874813882,1.10493463,116050.0,116030.0,0.39867]
[1755874814069,0.6061942,116040.0,116030.0,0.39867]
[1755874814276,0.15921,116030.0,116020.0,0.5114567]
[1755874814478,1.24837673,116030.0,116020.0,0.14115]
[1755874814687,0.3888391,116020.0,116010.0,0.39867]
[1755874814869,0.0862095,116010.0,116000.0,1.33331]
[1755874815074,0.8314795,116010.0,116000.0,0.39867]
[1755874815275,0.8314795,116010.0,115990.0,0.14115]
[1755874815276,0.4686883,116000.0,115990.0,0.14115]
[1755874815579,0.086214,116000.0,115990.0,0.39867]
[1755874815882,0.606224,116000.0,115990.0,0.39867]
[1755874816180,0.606224,116000.0,115990.0,0.40827358]
[1755874816386,0.447014,116000.0,115990.0,0.40827358]
[1755874817085,0.6062197,116010.0,116000.0,0.39799]
[1755874817285,0.0002,116010.0,116000.0,1.33223]
[1755874817488,0.0002,116010.0,116000.0,1.94303]
[1755874818482,0.0002,116010.0,116000.0,1.94279]
[1755874818777,0.0012,116010.0,116000.0,1.94279]
[1755874819479,0.0012,116010.0,116000.0,1.94379]
[1755874820876,0.0012,116010.0,116000.0,2.0300042]
[1755874821275,0.001,116010.0,116000.0,2.0300042]
[1755874821474,0.38028123,116040.0,116010.0,0.0862052]
[1755874821679,0.46646583,116040.0,116030.0,0.39799]
[1755874821872,0.38028123,116040.0,116030.0,0.39799]
[1755874822278,0.01948123,116040.0,116030.0,0.39799]
[1755874822486,0.01948123,116040.0,116030.0,0.75879]
[1755874822680,0.3608,116050.0,116030.0,0.75879]
[1755874822880,0.3608,116050.0,116040.0,0.39799]
[1755874823082,1.10772973,116060.0,116040.0,0.39799]
[1755874823283,0.3608,116060.0,116050.0,0.39799]
[1755874823486,1.02509473,116060.0,116050.0,0.39799]
[1755874823782,0.4664271,116050.0,116040.0,0.46546328]
[1755874823983,0.88534213,116050.0,116040.0,1.39866328]
[1755874824284,1.0772271,116050.0,116040.0,0.29061328]
[1755874824487,1.40996503,116050.0,116040.0,0.38108328]
[1755874824785,1.41016503,116050.0,116040.0,0.38128328]
[1755874825186,1.49634233,116050.0,116040.0,0.06767328]
[1755874825583,1.49714233,116050.0,116040.0,0.0002]
[1755874825888,1.49734233,116050.0,116040.0,0.0002]
[1755874826189,1.49814233,116050.0,116040.0,0.0002]
[1755874826391,0.0861849,116040.0,116000.0,0.58394]
[1755874826591,0.8272552,116020.0,116010.0,0.13876]
[1755874827085,0.58184,116040.0,116010.0,0.7341969]
[1755874827291,0.8272421,116030.0,116020.0,0.13876]
[1755874827493,0.8272421,116030.0,116000.0,0.75879]
[1755874827494,0.29762,116010.0,116000.0,0.75879]
[1755874827681,0.71653503,116010.0,116000.0,0.75879]
[1755874827881,0.79916503,116010.0,116000.0,0.76179]
[1755874828085,0.37925,116010.0,116000.0,0.76179]
[1755874828279,1.10775843,116020.0,116000.0,0.3638]
[1755874828481,0.3608,116020.0,116010.0,1.33039]
[1755874828784,0.08263,116040.0,116010.0,1.33039]
[1755874828785,0.86590303,116040.0,116020.0,0.13876]
[1755874828987,0.86590303,116040.0,116030.0,0.13876]
[1755874828988,0.52001,116040.0,116030.0,0.13876]
[1755874829186,0.3608,116040.0,116030.0,0.39799]
[1755874829488,0.94852593,116050.0,116030.0,0.39799]
[1755874829792,0.15921,116040.0,116030.0,0.39819]
[1755874829996,0.3608,116050.0,116040.0,0.4841749]
[1755874830184,1.16350523,116060.0,116040.0,0.39819]
[1755874830489,0.67981555,116060.0,116050.0,0.39799]
[1755874830879,0.02139555,116060.0,116050.0,1.4170474]
[1755874831079,0.46249261,116070.0,116060.0,0.48496]
[1755874831080,0.01906261,116070.0,116060.0,0.48496]
[1755874831281,0.37986682,116090.0,116070.0,0.0861598]
[1755874831481,0.01906682,116090.0,116080.0,0.39799]
[1755874832088,1.24611273,116090.0,116080.0,0.39799]
[1755874832393,1.07733503,116090.0,116080.0,0.39799]
[1755874832789,0.66042,116090.0,116080.0,0.39799]
[1755874833177,1.24811273,116090.0,116080.0,0.39799]
[1755874833394,1.49811273,116090.0,116080.0,0.001]
[1755874833693,1.49811273,116090.0,116080.0,0.31461]
[1755874834086,1.49811273,116090.0,116080.0,0.001]
[1755874834790,1.49811273,116090.0,116080.0,0.13976]
[1755874835284,1.49811273,116090.0,116080.0,0.001]
[1755874835489,1.49811273,116090.0,116080.0,0.17585]
[1755874835792,1.49811273,116090.0,116080.0,0.13976]
[1755874836183,1.41196503,116090.0,116080.0,0.13976]
[1755874836379,1.41196503,116090.0,116080.0,0.31461]
[1755874836584,1.41196503,116090.0,116080.0,0.39899]
[1755874836585,1.49811273,116090.0,116080.0,0.39899]
[1755874836887,0.6128,116090.0,116080.0,0.4849451]
[1755874837085,0.3628,116090.0,116080.0,0.64879]
[1755874837395,0.002,116090.0,116080.0,0.7349451]
[1755874837893,0.002,116090.0,116080.0,1.0957451]
[1755874838289,4e-05,116100.0,116090.0,0.0861477]
[1755874838485,4e-05,116100.0,116090.0,2.44541273]
[1755874838788,0.01904912,116120.0,116110.0,0.4849229]
[1755874838992,0.36084,116130.0,116120.0,0.0869255]
[1755874838993,4e-05,116130.0,116120.0,0.0869255]
[1755874839195,0.01909385,116150.0,116120.0,1.51463053]
[1755874839395,0.01909385,116150.0,116140.0,0.75879]
[1755874839694,0.31671385,116150.0,116140.0,1.68927]
[1755874839877,0.01909385,116150.0,116140.0,1.93927]
[1755874840082,0.01909385,116150.0,116140.0,1.57847]
[1755874840286,0.76014385,116150.0,116140.0,1.40362]
[1755874840497,1.18105888,116150.0,116140.0,1.40362]
[1755874840683,1.18105888,116150.0,116130.0,1.68907]
[1755874840684,0.38025,116140.0,116130.0,1.68907]
[1755874840885,0.84824705,116150.0,116140.0,0.31361]
[1755874841189,0.18030385,116150.0,116140.0,0.39799]
[1755874841490,0.63189385,116150.0,116140.0,0.39799]
[1755874841697,0.76214385,116150.0,116140.0,0.39799]
[1755874841987,0.67951385,116150.0,116140.0,0.39799]
[1755874842186,0.84624705,116150.0,116140.0,0.4671066]
[1755874842389,0.84624705,116150.0,116140.0,0.2078766]
[1755874842688,0.76014385,116150.0,116140.0,0.2078766]
[1755874842894,0.38089385,116150.0,116140.0,0.7171066]